[Event "FRA-ch Youth 2017"]
[Site "Belfort"]
[Date "2017.04.22"]
[Round "8"]
[White "Viel, Simon"]
[Black "Coiffait, Pierre-Basile"]
[Result "0-1"]
[ECO "B11"]
[WhiteElo "2220"]
[BlackElo "2193"]
[Annotator "NA"]
[PlyCount "144"]
[EventDate "2017.??.??"]
[EventCountry "FRA"]
[SourceTitle "playchess.com"]
[Source "ChessBase"]
[SourceQuality "1"]
[TimeControl "5400+30"]

1. e4 {[%emt 0:00:00]} c6 {[%emt 0:00:07]} 2. Nc3 {[%emt 0:00:00]} d5 {[%emt 0:00:11]} 3. Nf3 {[%emt 0:00:00]} Bg4 {[%emt 0:00:30]} 4. h3 {[%emt 0:00:00]} Bxf3 {[%emt 0:00:04]} 5. Qxf3 {[%emt 0:00:00]} e6 {[%emt 0:00:03]} 6. g3 {[%emt 0:00:02]} Nf6 {[%emt 0:03:15]} 7. Bg2 {[%emt 0:00:04]} Nbd7 {[%emt 0:06:55]} 8. d4 {[%emt 0:00:09] B11: Caro-Kann: Two Knights Variation} Nb6 $146 {[%emt 0:00:36]} (8... dxe4 9. Nxe4 Nxe4 10. Qxe4 Nf6 11. Qd3 Be7 12. O-O O-O 13. Re1 Qb6 14. c3 Rfd8 15. Qe2 a5 {½-½ (47) Neiksans,A (2620)-Chigaev,M (2550) Liepaja 2016}) 9. O-O {[%emt 0:04:58]} Be7 {[%emt 0:13:07]} 10. Bg5 {[%emt 0:08:56]} O-O {[%emt 0:05:18]} 11. Rad1 {[%emt 0:07:42]} Rc8 {[%emt 0:02:28]} 12. Qd3 {[%emt 0:08:11]} Nc4 {[%emt 0:12:02]} 13. Rb1 {[%emt 0:07:21]} h6 {[%emt 0:09:28]} 14. Bxf6 {[%emt 0:05:05]} Bxf6 {[%emt 0:00:40]} 15. f4 {[%emt 0:03:38]} b5 {[%emt 0:05:04]} 16. e5 {[%emt 0:02:46]} Be7 {[%emt 0:00:15]} 17. b3 {[%emt 0:05:48]} Na3 {[%emt 0:03:56]} 18. Rbd1 {[%emt 0:00:18]} c5 {[%emt 0:01:03]} 19. Ne2 {[%emt 0:04:16]} c4 {[%emt 0:05:35]} 20. Qf3 {[%emt 0:08:57]} Nxc2 {[%emt 0:09:39]} 21. f5 {[%emt 0:00:23]} exf5 {[%emt 0:04:34]} 22. Nf4 {[%emt 0:04:20]} Nb4 {[%emt 0:01:29]} 23. a3 {[%emt 0:06:00]} Nd3 {[%emt 0:00:48]} 24. Nxd5 {[%emt 0:04:17]} Bxa3 {[%emt 0:01:19]} 25. Qxf5 {[%emt 0:02:20]} Qg5 {[%emt 0:01:41]} 26. Qxg5 {[%emt 0:01:46]} hxg5 {[%emt 0:00:01]} 27. bxc4 {[%emt 0:00:02]} bxc4 {[%emt 0:00:40]} 28. Ra1 {[%emt 0:00:25]} Bb2 {[%emt 0:00:26]} 29. Ne7+ {[%emt 0:03:55]} Kh8 {[%emt 0:00:05]} 30. Ra4 {[%emt 0:01:37]} Bxd4+ {[%emt 0:00:57]} 31. Kh2 {[%emt 0:00:20]} Rce8 {[%emt 0:05:06]} 32. Nc6 {[%emt 0:00:59]} Bb6 {[%emt 0:04:15]} 33. Rxc4 {[%emt 0:02:01]} Nxe5 {[%emt 0:00:32]} 34. Re4 {[%emt 0:02:12]} Nxc6 {[%emt 0:00:53]} 35. Rxe8 {[%emt 0:00:01]} Rxe8 {[%emt 0:00:07]} 36. Bxc6 {[%emt 0:00:06]} Re2+ {[%emt 0:01:42]} 37. Bg2 {[%emt 0:00:31]} Kg8 {[%emt 0:01:03]} 38. Rc1 {[%emt 0:01:15]} g6 {[%emt 0:00:25]} 39. Rc4 {[%emt 0:00:27]} Kg7 {[%emt 0:00:27]} 40. h4 {[%emt 0:00:37]} gxh4 {[%emt 0:00:27]} 41. Rxh4 {[%emt 0:00:02]} a5 {[%emt 0:01:43]} 42. Kh3 {[%emt 0:02:43]} Bc5 {[%emt 0:00:29]} 43. Rc4 {[%emt 0:00:32]} Bb4 $19 {[%emt 0:00:13]} 44. Bd5 {[%emt 0:01:00]} Rd2 {[%emt 0:00:22]} 45. Bc6 {[%emt 0:00:41]} Rd3 {[%emt 0:00:31]} 46. Rf4 {[%emt 0:03:13]} Bd6 {[%emt 0:00:58]} 47. Rf3 {[%emt 0:00:09]} Rxf3 {[%emt 0:00:19]} 48. Bxf3 {[%emt 0:00:02]} f5 {[%emt 0:00:12]} 49. Bd1 {[%emt 0:00:13]} Kf6 {[%emt 0:00:04]} 50. Kg2 {[%emt 0:01:45]} g5 {[%emt 0:00:07]} 51. Kf3 {[%emt 0:01:02]} Ke5 {[%emt 0:00:06]} 52. Bc2 {[%emt 0:00:39]} f4 {[%emt 0:00:37]} 53. gxf4+ {[%emt 0:00:59]} gxf4 {[%emt 0:00:06]} 54. Ba4 {[%emt 0:00:08]} Kd4 {[%emt 0:00:31]} 55. Ke2 {[%emt 0:00:45]} Kc3 {[%emt 0:00:14]} 56. Bc6 {[%emt 0:00:24]} Kb4 {[%emt 0:00:12]} 57. Kd3 {[%emt 0:00:05]} Bc5 {[%emt 0:02:36]} 58. Ke4 {[%emt 0:00:55]} Be3 {[%emt 0:00:17]} 59. Kd3 {[%emt 0:00:04]} a4 {[%emt 0:01:06]} 60. Bd5 {[%emt 0:00:11]} a3 {[%emt 0:01:02]} 61. Bf7 {[%emt 0:00:10]} Kc5 {[%emt 0:00:27]} 62. Be6 {[%emt 0:01:49]} Kb4 {[%emt 0:00:53]} 63. Bd5 {[%emt 0:00:21]} Bf2 {[%emt 0:00:34]} 64. Bf7 {[%emt 0:01:08]} Bg3 {[%emt 0:00:05]} 65. Kc2 {[%emt 0:00:56]} f3 {[%emt 0:00:23]} 66. Bh5 {[%emt 0:00:15]} f2 {[%emt 0:00:03]} 67. Be2 {[%emt 0:00:04]} Be5 {[%emt 0:00:04]} 68. Kb1 {[%emt 0:00:05]} Kb3 {[%emt 0:00:20]} 69. Bd1+ {[%emt 0:00:04]} Kc3 {[%emt 0:00:03]} 70. Be2 {[%emt 0:00:03]} Kd2 {[%emt 0:00:05]} 71. Ba6 {[%emt 0:00:02]} Ke1 {[%emt 0:00:17]} 72. Ka2 {[%emt 0:00:03]} Bd6 {[%emt 0:00:07]} 0-1

[Event "FRA-ch Youth 2017"]
[Site "Belfort"]
[Date "2017.04.22"]
[Round "8"]
[White "Dudognon, Thibault"]
[Black "Le Gouic, Brendan"]
[Result "1-0"]
[ECO "A13"]
[WhiteElo "2218"]
[BlackElo "1736"]
[Annotator "NA"]
[PlyCount "67"]
[EventDate "2017.??.??"]
[EventCountry "FRA"]
[SourceTitle "playchess.com"]
[Source "ChessBase"]
[SourceQuality "1"]
[TimeControl "5400+30"]

{[%evp 14,57,-29,32767,-45,32767,32767,-32,32767,32767,32767,14,19,3,32767,32767,11,32767,53,32767,32767,32767,32767,32767,30,14,41,51,43,33,53,45,41,32767,75,66,82,90,62,23,268,268,275,32767,32767,437]} 1. c4 {[%emt 0:00:00]} e6 {[%emt 0:00:41]} 2. g3 {[%emt 0:00:00]} Nf6 {[%emt 0:02:06]} 3. Bg2 {[%emt 0:00:00]} d5 {[%emt 0:00:27]} 4. Nf3 {[%emt 0:00:01]} c5 {[%emt 0:02:30]} 5. O-O {[%emt 0:01:44]} Nc6 {[%emt 0:00:32]} 6. b3 {[%emt 0:02:58]} Be7 {[%emt 0:04:40]} 7. Bb2 {[%emt 0:00:56]} d4 {[%emt 0:00:42]} 8. e3 {[%emt 0:02:22]} e5 {[%emt 0:02:15]} 9. exd4 exd4 {[%emt 0:00:09]} 10. Re1 {[%emt 0:06:45] LiveBook: 8 Games A14: English Opening: 1...e6 with b3 by White} (10. d3 O-O 11. Na3 Bf5 12. Nc2 a5 13. Re1 Qd7 14. a3 Bd6 15. b4 axb4 16. axb4 Rxa1 17. Bxa1 b6 18. b5 Ne7 19. Ne5 Bxe5 20. Rxe5 {0-1 (48) Cruz,J (2459)-Kraemer,M (2546) Barcelona 2014}) 10... O-O {[%emt 0:02:31]} 11. Ne5 {[%emt 0:02:17]} Nb4 $146 {[%emt 0:01:45]} (11... Nxe5 12. Rxe5 Bd6 13. Re1 Bg4 14. Bf3 Qd7 15. Bxg4 Nxg4 16. Qf3 Ne5 17. Qe4 Rae8 {0-1 (28) Gomez Jurado,L (2303)-Lorenzo de la Riva,L (2421) Barcelona 2014}) 12. a3 {[%emt 0:01:37]} Na6 {[%emt 0:00:09]} 13. d3 {[%emt 0:06:40]} Rb8 {[%emt 0:04:26]} 14. Nd2 {[%emt 0:03:41]} Bd6 {[%emt 0:00:40]} 15. b4 {[%emt 0:04:31]} Bxe5 {[%emt 0:05:23]} 16. Rxe5 {[%emt 0:00:42]} b6 {[%emt 0:03:39]} 17. b5 {[%emt 0:03:13]} Nc7 {[%emt 0:00:19]} 18. h3 {[%emt 0:05:27]} Qd6 {[%emt 0:00:43]} 19. Re1 {[%emt 0:03:35]} Bf5 {[%emt 0:01:52]} 20. Nf3 {[%emt 0:05:09]} Rfe8 {[%emt 0:05:16]} 21. a4 {[%emt 0:02:18]} Rxe1+ {[%emt 0:02:46]} 22. Nxe1 {[%emt 0:00:13]} Re8 {[%emt 0:00:52]} 23. Bc1 {[%emt 0:05:32]} Ne6 {[%emt 0:06:10]} 24. a5 {[%emt 0:01:20]} g5 {[%emt 0:01:02]} 25. axb6 {[%emt 0:00:51]} axb6 {[%emt 0:00:11]} 26. Nf3 {[%emt 0:05:08]} g4 $2 {[%emt 0:01:22]} (26... h6 $11 {and Black has nothing to worry.}) 27. Nh4 {[%emt 0:00:13]} Qe5 {[%emt 0:02:38]} 28. Bc6 {[%emt 0:03:52]} Rb8 {[%emt 0:15:13]} 29. Ra2 $18 {[%emt 0:01:57]} ({Not} 29. Nxf5 Qxf5 30. h4 Kg7 $16) 29... gxh3 {[%emt 0:02:25]} 30. f4 {[%emt 0:02:14]} Bg4 {[%emt 0:11:12]} 31. fxe5 {[%emt 0:00:09]} Bxd1 {[%emt 0:01:41]} 32. exf6 {[%emt 0:00:09]} h6 {[%emt 0:01:45]} 33. Nf5 {[%emt 0:01:34]} Ng5 {[%emt 0:00:37]} 34. Nxh6+ {[%emt 0:00:14]} 1-0

[Event "FRA-ch Youth 2017"]
[Site "Belfort"]
[Date "2017.04.22"]
[Round "8"]
[White "Bergougnoux, Axel"]
[Black "Bournel, Antoine"]
[Result "1-0"]
[ECO "B34"]
[WhiteElo "2194"]
[BlackElo "1933"]
[Annotator "NA"]
[PlyCount "123"]
[EventDate "2017.??.??"]
[EventCountry "FRA"]
[SourceTitle "playchess.com"]
[Source "ChessBase"]
[SourceQuality "1"]
[TimeControl "5400+30"]

1. e4 {[%emt 0:00:00]} c5 {[%emt 0:00:06]} 2. Nf3 {[%emt 0:00:00]} Nc6 {[%emt 0:00:08]} 3. d4 {[%emt 0:00:25]} cxd4 {[%emt 0:00:06]} 4. Nxd4 {[%emt 0:00:01]} g6 {[%emt 0:00:09]} 5. Nc3 {[%emt 0:01:01]} Bg7 {[%emt 0:00:08]} 6. Nde2 {[%emt 0:02:13]} Nf6 {[%emt 0:02:45]} 7. g3 {[%emt 0:00:13]} b5 {[%emt 0:08:57]} 8. Bg2 {[%emt 0:01:52]} Rb8 {[%emt 0:09:08]} 9. O-O {[%emt 0:00:25] LiveBook: 74 Games} O-O {[%emt 0:01:32]} 10. h3 {[%emt 0:00:48]} d6 {[%emt 0:05:23]} 11. Re1 {[%emt 0:00:16] B70: Sicilian Dragon: 6 g3 and 6 Be2 (without a later Be3)} Nd7 {[%emt 0:05:55]} 12. Nd5 $146 {[%emt 0:13:28]} (12. Rb1 Nc5 13. b3 a5 14. Bb2 b4 15. Nd5 Bxb2 16. Rxb2 Bb7 17. c4 bxc3 18. Nexc3 {½-½ (41) Movsesian,S (2640)-Hansen,S (2520) Koszalin 1998}) 12... e6 {[%emt 0:06:31]} 13. Ne3 {[%emt 0:01:48]} Nb6 {[%emt 0:05:45]} 14. Rb1 {[%emt 0:01:41]} Qc7 {[%emt 0:01:24]} 15. b3 {[%emt 0:03:25]} a5 {[%emt 0:04:38]} 16. f4 {[%emt 0:08:44]} b4 17. f5 {[%emt 0:05:09]} exf5 {[%emt 0:12:44]} 18. exf5 {[%emt 0:00:24]} gxf5 {[%emt 0:03:07]} 19. Nf4 {[%emt 0:03:05]} Ne5 {[%emt 0:03:05]} (19... Be6 $11 {remains equal.}) 20. Bb2 {[%emt 0:03:06]} Be6 {[%emt 0:05:50]} 21. Qh5 {[%emt 0:11:59]} Ng6 {[%emt 0:05:01]} 22. Bxg7 {[%emt 0:08:42]} Kxg7 {[%emt 0:00:06]} 23. Qg5 {[%emt 0:03:42]} Qc3 {[%emt 0:06:52]} 24. Kh2 {[%emt 0:08:52]} h6 {[%emt 0:03:11]} 25. Nxf5+ {[%emt 0:02:41]} Bxf5 {[%emt 0:00:08]} 26. Nh5+ {[%emt 0:00:11]} Kh8 {[%emt 0:02:56]} 27. Qxf5 {[%emt 0:00:30]} Rbc8 {[%emt 0:01:14]} 28. Re3 {[%emt 0:09:20]} Rc5 {[%emt 0:00:40]} 29. Qf3 {[%emt 0:00:15]} Qd4 {[%emt 0:01:49]} 30. Rd1 {[%emt 0:00:26]} Qb2 {[%emt 0:00:58]} 31. Rxd6 {[%emt 0:05:35]} Rxc2 {[%emt 0:00:28]} 32. Red3 $2 {[%emt 0:04:52]} (32. Rxb6 $18 {and White stays clearly on top.} Rf2 33. Qe4) 32... Nc8 {[%emt 0:02:52]} 33. R6d4 {[%emt 0:00:25]} f5 {[%emt 0:00:59] [#]} 34. Rd8 $1 {[%emt 0:00:40]} ({Weaker is} 34. Qb7 Nce7 $16) 34... Nce7 {[%emt 0:00:26]} 35. Rxf8+ {[%emt 0:00:27]} Nxf8 {[%emt 0:00:05]} 36. Rd8 {[%emt 0:00:31]} Neg6 {[%emt 0:00:26]} 37. Qa8 {[%emt 0:00:33]} Re2 {[%emt 0:01:30]} 38. Rxf8+ {[%emt 0:00:35]} Nxf8 {[%emt 0:00:05]} 39. Qxf8+ {[%emt 0:00:01]} Kh7 {[%emt 0:00:09]} 40. Qf7+ {[%emt 0:00:32]} Kh8 {[%emt 0:00:04]} 41. Qf8+ {[%emt 0:00:08]} Kh7 {[%emt 0:00:06]} 42. Qxf5+ {[%emt 0:00:09]} Kh8 $18 {[%emt 0:00:18]} 43. Qf8+ {[%emt 0:01:12]} Kh7 {[%emt 0:00:04]} 44. Qf7+ {[%emt 0:00:07]} Kh8 {[%emt 0:00:03]} 45. Nf4 {[%emt 0:00:07]} Rxg2+ {[%emt 0:00:50]} 46. Nxg2 {[%emt 0:00:04]} Qxa2 {[%emt 0:00:21]} 47. Kg1 {[%emt 0:00:42]} Qd2 {[%emt 0:01:31]} 48. Nf4 {[%emt 0:02:04]} Qe1+ {[%emt 0:00:35]} 49. Kg2 {[%emt 0:00:00]} Qe4+ {[%emt 0:00:10]} 50. Kf2 {[%emt 0:00:07]} Qd4+ {[%emt 0:00:14]} 51. Kf3 {[%emt 0:00:15]} Qd1+ {[%emt 0:00:07]} 52. Ke4 {[%emt 0:00:27]} Qc2+ {[%emt 0:00:34]} 53. Ke5 {[%emt 0:00:22]} Qc3+ {[%emt 0:00:29]} 54. Kf5 {[%emt 0:00:11]} Qc2+ {[%emt 0:00:44]} 55. Kg4 {[%emt 0:00:29]} Qd1+ {[%emt 0:00:28]} 56. Kh4 {[%emt 0:00:08]} Qd8+ {[%emt 0:00:12]} 57. Kg4 {[%emt 0:00:15]} Qd1+ {[%emt 0:00:12]} 58. Kf5 {[%emt 0:00:10]} Qc2+ {[%emt 0:00:20]} 59. Kf6 {[%emt 0:00:19]} Qc3+ {[%emt 0:00:43]} 60. Kg6 {[%emt 0:01:18]} Qxg3+ {[%emt 0:02:04]} 61. Kxh6 {[%emt 0:00:07]} Qh4+ {[%emt 0:01:18]} 62. Nh5 {[%emt 0:00:08]} 1-0

[Event "FRA-ch Youth 2017"]
[Site "Belfort"]
[Date "2017.04.22"]
[Round "8"]
[White "Trouve, Guillaume"]
[Black "Gatineau, Yovann"]
[Result "0-1"]
[ECO "B40"]
[WhiteElo "2134"]
[BlackElo "2214"]
[Annotator "NA"]
[PlyCount "54"]
[EventDate "2017.??.??"]
[EventCountry "FRA"]
[SourceTitle "playchess.com"]
[Source "ChessBase"]
[SourceQuality "1"]
[TimeControl "5400+30"]

1. e4 {[%emt 0:00:00]} c5 {[%emt 0:02:28]} 2. Nf3 {[%emt 0:00:00]} e6 {[%emt 0:00:28]} 3. d4 {[%emt 0:00:00]} cxd4 {[%emt 0:00:04]} 4. Nxd4 {[%emt 0:00:00]} Nf6 {[%emt 0:00:03]} 5. Nc3 {[%emt 0:00:05]} Nc6 {[%emt 0:00:04]} 6. Ndb5 {[%emt 0:00:08]} Bb4 {[%emt 0:00:05]} 7. a3 {[%emt 0:03:27]} Bxc3+ {[%emt 0:01:03]} 8. Nxc3 {[%emt 0:00:07]} d5 {[%emt 0:00:03]} 9. exd5 {[%emt 0:04:07]} exd5 {[%emt 0:00:07]} 10. Bg5 {[%emt 0:03:34] LiveBook: 11 Games} (10. Bd3 $14) 10... d4 {[%emt 0:06:00]} 11. Qe2+ {[%emt 0:01:10]} Be6 {[%emt 0:00:56]} 12. O-O-O {[%emt 0:03:57]} Qa5 {[%emt 0:03:30]} 13. Bxf6 {[%emt 0:05:34]} gxf6 {[%emt 0:02:02]} 14. Ne4 {[%emt 0:00:56]} O-O-O {[%emt 0:00:06]} 15. Qb5 {[%emt 0:10:23]} Qc7 {[%emt 0:00:04]} 16. Kb1 {[%emt 0:03:41]} Rd5 {[%emt 0:07:42]} 17. Qd3 {[%emt 0:01:54]} Rhd8 {[%emt 0:07:36]} 18. Qg3 {[%emt 0:06:42]} Ne5 {[%emt 0:10:04]} 19. Nxf6 {[%emt 0:12:21]} Ra5 {[%emt 0:00:55]} 20. b4 $2 {[%emt 0:15:59]} (20. Be2 $16 {stays on course.}) 20... d3 {[%emt 0:06:45]} 21. Bxd3 $2 {[%emt 0:07:26]} (21. Rxd3 $17 Nxd3 22. Bxd3 Rxa3 23. Qxc7+ Kxc7 24. Kb2) 21... Rxa3 {[%emt 0:00:49]} 22. Ne4 {[%emt 0:01:43]} a5 {[%emt 0:10:17]} 23. Rhe1 {[%emt 0:08:30]} f6 {[%emt 0:07:30]} 24. Qe3 {[%emt 0:05:45]} Nxd3 {[%emt 0:07:43]} 25. Nc5 {[%emt 0:00:53]} Ba2+ {[%emt 0:02:11]} 26. Ka1 {[%emt 0:00:04]} Nxe1 {[%emt 0:01:25]} 27. Rxd8+ $19 {[%emt 0:03:44]} Qxd8 {[%emt 0:00:07]} 0-1

[Event "FRA-ch Youth 2017"]
[Site "Belfort"]
[Date "2017.04.22"]
[Round "8"]
[White "Lever, Erwan"]
[Black "Micottis, Dorian"]
[Result "0-1"]
[ECO "A48"]
[WhiteElo "2129"]
[BlackElo "2249"]
[Annotator "NA"]
[PlyCount "94"]
[EventDate "2017.??.??"]
[EventCountry "FRA"]
[SourceTitle "playchess.com"]
[Source "ChessBase"]
[SourceQuality "1"]
[TimeControl "5400+30"]

1. d4 {[%emt 0:00:00]} Nf6 {[%emt 0:01:51]} 2. Nf3 {[%emt 0:00:00]} g6 {[%emt 0:00:22]} 3. Nbd2 {[%emt 0:00:00]} d5 {[%emt 0:01:28]} 4. b3 {[%emt 0:00:00] D02: 1 d4 d5 2 Nf3 sidelines, including 2...Nf6 3 g3 and 2...Nf6 3 Bf4} (4. e3 a5 5. c4 Bg7 6. b3 O-O 7. Bb2 a4 8. Be2 Bf5 9. O-O Nbd7 10. b4 a3 11. Bc3 dxc4 12. Nxc4 {½-½ (47) Yu,Y (2750)-Svidler,P (2741) Shenzhen 2017}) 4... Bg7 {[%emt 0:00:26]} 5. Bb2 {[%emt 0:00:00]} O-O {[%emt 0:00:24]} 6. c4 {[%emt 0:00:07]} b6 $146 {[%emt 0:07:01]} (6... c5 7. dxc5 Na6 8. Bd4 Bf5 9. Rc1 Rc8 10. cxd5 Qxd5 11. Nc4 Be4 12. e3 Nxc5 13. Nce5 {½-½ (28) Lazic,M (2450)-Nestorovic,N (2412) Kragujevac 2009}) 7. g3 {[%emt 0:01:39]} Bb7 {[%emt 0:01:18]} 8. Bg2 {[%emt 0:00:06]} Nbd7 {[%emt 0:04:27]} 9. O-O {[%emt 0:01:32]} e6 {[%emt 0:05:36]} 10. b4 {[%emt 0:05:24]} c5 {[%emt 0:13:14]} 11. dxc5 {[%emt 0:04:39]} bxc5 {[%emt 0:00:07]} 12. b5 {[%emt 0:09:30]} d4 {[%emt 0:05:30]} 13. a4 {[%emt 0:02:48]} Ne8 {[%emt 0:03:08]} 14. a5 {[%emt 0:11:32]} Rc8 {[%emt 0:00:54]} 15. Qb3 {[%emt 0:03:41]} Nd6 {[%emt 0:02:10]} 16. Ne1 {[%emt 0:03:23]} Bxg2 {[%emt 0:00:22]} 17. Kxg2 {[%emt 0:00:08]} e5 {[%emt 0:00:39]} 18. e4 {[%emt 0:05:46]} (18. Kg1 $17) 18... f5 {[%emt 0:03:10]} 19. exf5 {[%emt 0:02:07]} gxf5 {[%emt 0:01:43]} ({Don't take} 19... Rxf5 20. f3 $17) 20. Ndf3 {[%emt 0:02:09]} (20. Kh1 $17) 20... e4 {[%emt 0:02:38]} 21. Ng1 {[%emt 0:06:37]} f4 {[%emt 0:10:58]} 22. Nh3 {[%emt 0:01:09]} f3+ {[%emt 0:02:45]} 23. Kh1 {[%emt 0:00:06]} Ne5 {[%emt 0:00:30]} 24. Nf4 {[%emt 0:01:04]} Rxf4 {[%emt 0:07:00]} ({Resist} 24... Nexc4 25. Ne6 Qd7 26. Nxf8 Kxf8 27. Nxf3 $19) ({Don't do} 24... Ndxc4 25. Ra4 Qf6 26. Rxc4 $19) 25. gxf4 {[%emt 0:00:01]} Qh4 {[%emt 0:00:30]} 26. fxe5 {[%emt 0:01:43]} Bxe5 {[%emt 0:00:05]} 27. Rg1+ {[%emt 0:00:07]} Kh8 {[%emt 0:00:22]} 28. Rg3 {[%emt 0:00:06]} Bxg3 {[%emt 0:04:56]} 29. fxg3 {[%emt 0:00:08] [#]} Qf6 $2 {[%emt 0:00:59]} (29... Qg4 $1 $19 30. Qd1 {[#]} f2 $1 {[%mdl 512]} 31. Bxd4+ cxd4 32. Qxd4+ Qg7 33. Qxg7+ Kxg7) 30. Nc2 {[%emt 0:09:51]} f2 {[%emt 0:01:04]} 31. Rf1 {[%emt 0:04:32]} Nxc4 $1 {[%emt 0:01:44]} 32. Kg2 $1 Nd2 {[%emt 0:00:30]} (32... Nxa5 33. Qd5 Qf3+ 34. Kh3 $16) 33. Qe3 Nxf1 {[%emt 0:00:30]} 34. Kxf1 Qe6 {[%emt 0:00:30]} ({Stronger than} 34... dxe3 35. Bxf6+ Kg8 36. Be5 $16 (36. Nxe3 Rb8 $14)) 35. Nxd4 $2 (35. Qxf2 $15 Kg8 36. Nxd4 cxd4 37. Qxd4 Qc4+ 38. Ke1 (38. Qxc4+ $2 Rxc4 39. Bf6 Rc5 $19) 38... Qxd4 39. Bxd4) 35... Qh3+ {[%emt 0:00:30]} 36. Kxf2 Qxh2+ {[%emt 0:00:30]} 37. Ke1 Qxb2 {[%emt 0:00:30]} 38. Ne6 Qe5 {[%emt 0:00:30]} 39. Ng5 (39. Nf4 $142) 39... Rf8 {[%emt 0:00:30]} 40. b6 Qa1+ {[%emt 0:00:30]} 41. Ke2 Qa2+ {[%emt 0:00:30]} 42. Ke1 Qxa5+ {[%emt 0:00:30]} 43. Ke2 Qa2+ {[%emt 0:00:30]} 44. Ke1 Qb1+ {[%emt 0:00:30]} 45. Ke2 Qf1+ {[%emt 0:00:30]} 46. Kd2 Rd8+ {[%emt 0:00:30]} 47. Kc2 Qd1+ {[%emt 0:00:30]} 0-1

[Event "FRA-ch Youth 2017"]
[Site "Belfort"]
[Date "2017.04.22"]
[Round "8"]
[White "Degraeve, Remy"]
[Black "David, Bogdan-Emanuel"]
[Result "1-0"]
[ECO "B24"]
[WhiteElo "2126"]
[BlackElo "2099"]
[Annotator "NA"]
[PlyCount "39"]
[EventDate "2017.??.??"]
[EventCountry "FRA"]
[SourceTitle "playchess.com"]
[Source "ChessBase"]
[SourceQuality "1"]
[TimeControl "5400+30"]

1. e4 {[%emt 0:00:00]} c5 {[%emt 0:00:30]} 2. Nc3 {[%emt 0:00:00]} Nc6 {[%emt 0:00:36]} 3. Bb5 {[%emt 0:00:00]} Nd4 {[%emt 0:01:03]} 4. Bc4 {[%emt 0:00:00]} g6 {[%emt 0:01:06]} 5. Nf3 {[%emt 0:00:00]} Bg7 {[%emt 0:00:45]} 6. Nxd4 {[%emt 0:00:00]} cxd4 {[%emt 0:00:09]} 7. Qf3 {[%emt 0:00:03]} Nh6 {[%emt 0:01:17]} 8. Ne2 {[%emt 0:00:34]} O-O {[%emt 0:00:52]} 9. d3 {[%emt 0:00:08] LiveBook: 105 Games} Ng4 {[%emt 0:01:32] B23: Closed Sicilian: Lines without g3} 10. Bb3 {[%emt 0:00:05]} d6 {[%emt 0:02:11]} 11. Qg3 {[%emt 0:00:24]} Bd7 {[%emt 0:10:41]} 12. h4 {[%emt 0:04:46]} a5 {[%emt 0:11:43]} 13. a4 {[%emt 0:00:43]} Qb6 $146 {[%emt 0:06:42]} (13... h5 14. f3 Ne5 15. Nxd4 Qb6 16. Be3 Kh7 17. O-O Nxf3+ 18. Nxf3 Qxe3+ {0-1 (82) Solak,D (2510)-Nikiforenko,S Dos Hermanas 2003}) 14. h5 {[%emt 0:03:17]} Rfc8 {[%emt 0:19:19]} 15. hxg6 {[%emt 0:02:30]} hxg6 {[%emt 0:00:05]} 16. Qh4 {[%emt 0:03:30]} Kf8 {[%emt 0:07:07]} (16... Rc5 {is a better defense.} 17. Bg5 (17. Qxe7 Be8 18. Bf4 Qb4+ 19. Bd2 Qb6 $11) 17... Nf6) 17. Bg5 {[%emt 0:07:54]} Qb4+ {[%emt 0:03:19]} 18. Kf1 {[%emt 0:03:54]} f6 {[%emt 0:05:49]} 19. Nf4 {[%emt 0:04:05]} fxg5 {[%emt 0:13:20]} 20. Nxg6+ {[%emt 0:00:41]} 1-0

[Event "FRA-ch Youth 2017"]
[Site "Belfort"]
[Date "2017.04.22"]
[Round "8"]
[White "Maache, Jawad"]
[Black "Boyer, Mahel"]
[Result "1-0"]
[ECO "D00"]
[WhiteElo "2119"]
[BlackElo "2020"]
[Annotator "NA"]
[PlyCount "64"]
[EventDate "2017.??.??"]
[EventCountry "FRA"]
[SourceTitle "playchess.com"]
[Source "ChessBase"]
[SourceQuality "1"]
[TimeControl "5400+30"]

1. d4 {[%emt 0:00:00]} d5 {[%emt 0:00:19]} 2. Nc3 {[%emt 0:00:00]} e5 {[%emt 0:18:55] D00: 1 d4 d5: Unusual lines} (2... Nf6 3. Bf4 a6 4. e3 e6 5. Nf3 c5 6. a3 b5 7. Bd3 Bb7 8. O-O Nbd7 9. Re1 Be7 10. Ne5 O-O 11. Nxd7 Nxd7 {0-1 (55) Jobava,B (2702)-Carlsen,M (2840) Doha 2016}) 3. dxe5 {[%emt 0:04:18]} d4 {[%emt 0:00:04]} 4. Ne4 {[%emt 0:01:48]} Nc6 {[%emt 0:00:19]} 5. Nf3 {[%emt 0:01:48]} Bg4 $146 {[%emt 0:06:27]} (5... Nf6 6. Nxf6+ gxf6 7. exf6 Nb4 8. Nxd4 c5 9. Nb5 Bf5 10. e4 Bxe4 11. Bc4 Nxc2+ {0-1 (11) Rosenstock,F-Hartogh,C Goettingen 2008}) 6. Bf4 {[%emt 0:14:01]} Nge7 {[%emt 0:02:56]} 7. h3 {[%emt 0:10:10]} Bxf3 {[%emt 0:04:35]} 8. exf3 {[%emt 0:00:10]} Ng6 {[%emt 0:11:54]} 9. Qd2 {[%emt 0:05:11]} (9. Bg3 $14) 9... Qd5 {[%emt 0:07:56]} 10. Be2 {[%emt 0:07:21]} Nxf4 {[%emt 0:06:04]} 11. Qxf4 {[%emt 0:00:03]} Qxe5 {[%emt 0:00:17]} 12. Qxe5+ Nxe5 13. O-O-O {[%emt 0:01:29]} O-O-O {[%emt 0:02:21]} (13... Nc6 $14) 14. f4 {[%emt 0:02:19]} Nc6 {[%emt 0:15:47]} 15. Ng5 {[%emt 0:00:24]} Re8 {[%emt 0:04:19]} 16. Bg4+ {[%emt 0:02:37]} Kb8 {[%emt 0:00:03]} 17. Nxf7 {[%emt 0:00:10]} Rg8 {[%emt 0:00:15]} 18. Bf3 {[%emt 0:05:30]} Nd8 {[%emt 0:01:26]} 19. Bd5 {[%emt 0:03:18]} Ne6 {[%emt 0:00:47]} 20. Rhe1 {[%emt 0:00:50]} Bd6 {[%emt 0:02:24]} 21. Nxd6 {[%emt 0:00:21]} cxd6 {[%emt 0:00:45]} 22. Rxe6 {[%emt 0:00:09]} Rxe6 {[%emt 0:00:07]} 23. Bxe6 {[%emt 0:00:05]} Re8 {[%emt 0:00:11]} 24. f5 {[%emt 0:00:12]} g6 $18 {[%emt 0:00:07]} 25. g4 {[%emt 0:00:36]} gxf5 26. gxf5 {[%emt 0:00:06]} Re7 {[%emt 0:01:35]} 27. Rxd4 {[%emt 0:00:33]} Rg7 {[%emt 0:00:05]} 28. Rg4 {[%emt 0:00:22]} Re7 {[%emt 0:00:22]} 29. Rg8+ {[%emt 0:00:20]} Kc7 30. Rc8+ {[%emt 0:00:13]} Kb6 {[%emt 0:00:04]} 31. f6 {[%emt 0:00:22]} Rxe6 {[%emt 0:00:01]} 32. f7 {[%emt 0:00:07]} Re1+ 1-0